fUSD/lending_fUSD_20250602
["ID","MTS","AMOUNT","RATE_DAILY","PERIOD"]
[363751117,1748860248587,-420.0,0.00019726,2]
[363751118,1748860248597,-1408.89,0.00019726,2]
[363751119,1748860248607,-238.72,0.00019726,2]
[363751120,1748860248617,-420.0,0.00019726,2]
[363751121,1748860248626,-420.0,0.00019726,2]
[363751122,1748860248637,-839.25,0.00019726,2]
[363751123,1748860248647,-420.0,0.00019726,2]
[363751124,1748860248657,-365.22,0.00019726,2]
[363751125,1748860248667,-420.0,0.00019726,2]
[363751126,1748860248678,-420.0,0.00019726,2]
[363751127,1748860248688,-420.0,0.00019726,2]
[363751128,1748860248698,-861.32,0.00019726,2]
[363751129,1748860248708,-420.0,0.00019726,2]
[363751130,1748860248718,-420.0,0.00019726,2]
[363751131,1748860248728,-529.28,0.00019726,2]
[363751132,1748860248739,-420.0,0.00019726,2]
[363751133,1748860248749,-420.0,0.00019726,2]
[363751134,1748860248759,-420.0,0.00019726,2]
[363751135,1748860248770,-420.0,0.00019726,2]
[363751136,1748860248780,-420.0,0.00019726,2]
[363751137,1748860248790,-493.03,0.00019726,2]
[363751138,1748860248801,-420.0,0.00019726,2]
[363751139,1748860248811,-241.54,0.00019726,2]
[363751140,1748860248822,-420.0,0.00019726,2]
[363751141,1748860248832,-420.0,0.00019726,2]
[363751142,1748860248842,-420.0,0.00019726,2]
[363751143,1748860248852,-420.0,0.00019726,2]
[363751144,1748860248862,-420.0,0.00019726,2]
[363751145,1748860248873,-3164.36,0.00019726,2]
[363751146,1748860248883,-420.0,0.00019726,2]
[363751147,1748860248894,-420.0,0.00019726,2]
[363751148,1748860248904,-308.7,0.00019726,2]
[363751149,1748860248915,-480.12,0.00019726,2]
[363751150,1748860248925,-420.0,0.00019726,2]
[363751151,1748860248936,-420.0,0.00019726,2]
[363751152,1748860248946,-491.12,0.00019726,2]
[363751153,1748860248956,-420.0,0.00019726,2]
[363751154,1748860248967,-420.0,0.00019726,2]
[363751155,1748860248977,-420.0,0.00019726,2]
[363751156,1748860248988,-420.0,0.00019726,2]
[363751157,1748860248999,-1068.3,0.00019726,2]
[363751158,1748860249010,-298.0,0.00019726,2]
[363751159,1748860249024,-420.0,0.00019726,2]
[363751160,1748860249034,-1048.44,0.00019726,2]
[363751161,1748860249045,-420.0,0.00019726,2]
[363751162,1748860249055,-420.0,0.00019726,2]
[363751163,1748860249066,-420.0,0.00019726,2]
[363751164,1748860249076,-658.33,0.00019726,2]
[363751165,1748860249086,-420.0,0.00019726,2]
[363751166,1748860249097,-420.0,0.00019726,2]
[363751167,1748860249107,-420.0,0.00019726,2]
[363751168,1748860249118,-420.0,0.00019726,2]
[363751169,1748860249128,-420.0,0.00019726,2]
[363751170,1748860249139,-456.02,0.00019726,2]
[363751171,1748860249149,-420.0,0.00019726,2]
[363751172,1748860249159,-420.25,0.00019726,2]
[363751173,1748860249169,-420.0,0.00019726,2]
[363751174,1748860249180,-925.68,0.00019726,2]
[363751175,1748860249190,-420.0,0.00019726,2]
[363751176,1748860249200,-420.0,0.00019726,2]
[363751177,1748860249211,-420.0,0.00019726,2]
[363751178,1748860249222,-420.0,0.00019726,2]
[363751179,1748860249234,-420.0,0.00019726,2]
[363751180,1748860249245,-420.0,0.00019726,2]
[363751181,1748860249255,-420.0,0.00019726,2]
[363751182,1748860249265,-420.0,0.00019726,2]
[363751183,1748860249276,-420.0,0.00019726,2]
[363751184,1748860249287,-420.0,0.00019726,2]
[363751185,1748860249297,-420.0,0.00019726,2]
[363751186,1748860249307,-1599.89,0.00019726,2]
[363751187,1748860249317,-420.0,0.00019726,2]
[363751188,1748860249329,-420.0,0.00019726,2]
[363751189,1748860249339,-420.0,0.00019726,2]
[363751190,1748860249349,-420.0,0.00019726,2]
[363751191,1748860249359,-425.83,0.00019726,2]
[363751192,1748860249369,-420.0,0.00019726,2]
[363751193,1748860249379,-8604.24,0.00019726,2]
[363751194,1748860249389,-473.12,0.00019726,2]
[363751195,1748860249399,-1736.15,0.00019726,2]
[363751196,1748860249409,-463.14,0.00019726,2]
[363751197,1748860249418,-1014.78,0.00019726,2]
[363751198,1748860249428,-420.0,0.00019726,2]
[363751199,1748860249438,-2015.88,0.00019726,2]
[363751200,1748860249448,-889.97,0.00019726,2]
[363751201,1748860249457,-420.0,0.00019726,2]
[363751202,1748860249467,-381.36,0.00019726,2]
[363751203,1748860249477,-1096.52,0.00019726,2]
[363751204,1748860249487,-420.0,0.00019726,2]
[363751205,1748860249497,-420.0,0.00019726,2]
[363751206,1748860249507,-420.0,0.00019726,2]
[363751207,1748860249516,-420.0,0.00019726,2]
[363751208,1748860249526,-688.67,0.00019726,2]
[363751209,1748860249536,-420.0,0.00019726,2]
[363751210,1748860249546,-550.28,0.00019726,2]
[363751211,1748860249556,-420.0,0.00019726,2]
[363751212,1748860249566,-420.0,0.00019726,2]
[363751213,1748860249576,-256.04,0.00019726,2]
[363751214,1748860249585,-726.39,0.00019726,2]
[363751215,1748860249595,-420.0,0.00019726,2]
[363751216,1748860249604,-420.0,0.00019726,2]
[363751217,1748860249615,-2424.67,0.00019726,2]
[363751218,1748860249624,-1039.57,0.00019726,2]
[363751219,1748860249634,-420.0,0.00019726,2]
[363751220,1748860249643,-935.55,0.00019726,2]
[363751221,1748860249653,-420.0,0.00019726,2]
[363751222,1748860249662,-420.0,0.00019726,2]
[363751223,1748860249671,-190.08,0.00019726,2]
[363751224,1748860249681,-420.0,0.00019726,2]
[363751225,1748860249690,-420.0,0.00019726,2]
[363751226,1748860249700,-420.0,0.00019726,2]
[363751227,1748860249709,-420.0,0.00019726,2]
[363751228,1748860249718,-420.0,0.00019726,2]
[363751229,1748860249728,-532.95,0.00019726,2]
[363751230,1748860249738,-420.0,0.00019726,2]
[363751231,1748860249748,-420.0,0.00019726,2]
[363751232,1748860249758,-354.01,0.000198,2]
[363751233,1748860249768,-155.44415502,0.00019802,2]
[363751234,1748860249779,-555.64,0.00019863,2]
[363751235,1748860249789,-420.0,0.00019863,2]
[363751236,1748860249801,-519.55,0.00019863,2]
[363751237,1748860249811,-420.0,0.00019863,2]
[363751238,1748860249821,-420.0,0.00019863,2]
[363751239,1748860249880,-244.16,0.00019863,2]
[363751240,1748860249890,-5839.78,0.00019863,2]
[363751241,1748860249901,-420.0,0.00019863,2]
[363751242,1748860249912,-420.0,0.00019863,2]
[363751243,1748860249923,-1408.89,0.00019863,2]
[363751244,1748860249933,-420.0,0.00019863,2]
[363751245,1748860249943,-505.06,0.00019863,2]
[363751246,1748860249955,-839.25,0.00019863,2]
[363751247,1748860249965,-420.0,0.00019863,2]
[363751248,1748860249975,-420.0,0.00019863,2]
[363751249,1748860249985,-420.0,0.00019863,2]
[363751250,1748860249995,-420.0,0.00019863,2]
[363751251,1748860250005,-861.32,0.00019863,2]
[363751252,1748860250016,-420.0,0.00019863,2]
[363751253,1748860250031,-398.9,0.00019863,2]
[363751254,1748860250042,-529.28,0.00019863,2]
[363751255,1748860250052,-449.78,0.00019863,2]
[363751256,1748860250062,-420.0,0.00019863,2]
[363751257,1748860250073,-420.0,0.00019863,2]
[363751258,1748860250082,-420.0,0.00019863,2]
[363751259,1748860250092,-420.0,0.00019863,2]
[363751260,1748860250102,-493.03,0.00019863,2]
[363751261,1748860250111,-420.0,0.00019863,2]
[363751262,1748860250121,-420.0,0.00019863,2]
[363751263,1748860250130,-420.0,0.00019863,2]
[363751264,1748860250140,-420.0,0.00019863,2]
[363751265,1748860250149,-420.0,0.00019863,2]
[363751266,1748860250159,-420.0,0.00019863,2]
[363751267,1748860250169,-3164.36,0.00019863,2]
[363751268,1748860250178,-420.0,0.00019863,2]
[363751269,1748860250188,-420.0,0.00019863,2]
[363751270,1748860250198,-277.7,0.00019863,2]
[363751271,1748860250207,-420.0,0.00019863,2]
[363751272,1748860250217,-491.12,0.00019863,2]
[363751273,1748860250226,-420.0,0.00019863,2]
[363751274,1748860250236,-420.0,0.00019863,2]
[363751275,1748860250246,-420.0,0.00019863,2]
[363751276,1748860250255,-420.0,0.00019863,2]
[363751277,1748860250264,-1068.3,0.00019863,2]
[363751278,1748860250275,-420.0,0.00019863,2]
[363751279,1748860250285,-1048.44,0.00019863,2]
[363751280,1748860250294,-420.0,0.00019863,2]
[363751281,1748860250303,-420.0,0.00019863,2]
[363751282,1748860250313,-420.0,0.00019863,2]
[363751283,1748860250322,-658.33,0.00019863,2]
[363751284,1748860250332,-420.0,0.00019863,2]
[363751285,1748860250342,-420.0,0.00019863,2]
[363751286,1748860250351,-420.0,0.00019863,2]
[363751287,1748860250361,-420.0,0.00019863,2]
[363751288,1748860250371,-420.0,0.00019863,2]
[363751289,1748860250381,-420.0,0.00019863,2]
[363751290,1748860250391,-420.25,0.00019863,2]
[363751291,1748860250401,-420.0,0.00019863,2]
[363751292,1748860250410,-925.68,0.00019863,2]
[363751293,1748860250420,-420.0,0.00019863,2]
[363751294,1748860250430,-420.0,0.00019863,2]
[363751295,1748860250439,-420.0,0.00019863,2]
[363751296,1748860250449,-420.0,0.00019863,2]
[363751297,1748860250458,-420.0,0.00019863,2]
[363751298,1748860250468,-420.0,0.00019863,2]
[363751299,1748860250477,-420.0,0.00019863,2]
[363751300,1748860250486,-420.0,0.00019863,2]
[363751301,1748860250495,-420.0,0.00019863,2]
[363751302,1748860250504,-453.58,0.00019863,2]
[363751303,1748860250514,-420.0,0.00019863,2]
[363751304,1748860250526,-1599.89,0.00019863,2]
[363751305,1748860250535,-420.0,0.00019863,2]
[363751306,1748860250545,-420.0,0.00019863,2]
[363751307,1748860250554,-420.0,0.00019863,2]
[363751308,1748860250564,-420.0,0.00019863,2]
[363751309,1748860250573,-425.83,0.00019863,2]
[363751310,1748860250583,-420.0,0.00019863,2]
[363751311,1748860250593,-8604.24,0.00019863,2]
[363751312,1748860250603,-473.12,0.00019863,2]
[363751313,1748860250613,-1736.15,0.00019863,2]
[363751314,1748860250623,-463.14,0.00019863,2]
[363751315,1748860250633,-1014.78,0.00019863,2]
[363751316,1748860250642,-420.0,0.00019863,2]
[363751317,1748860250651,-2015.88,0.00019863,2]
[363751318,1748860250661,-889.97,0.00019863,2]
[363751319,1748860250671,-420.0,0.00019863,2]
[363751320,1748860250681,-1096.52,0.00019863,2]
[363751321,1748860250690,-420.0,0.00019863,2]
[363751322,1748860250699,-420.0,0.00019863,2]
[363751323,1748860250708,-420.0,0.00019863,2]
[363751324,1748860250717,-420.0,0.00019863,2]
[363751325,1748860250726,-688.67,0.00019863,2]
[363751326,1748860250735,-443.56,0.00019863,2]
[363751327,1748860250745,-420.0,0.00019863,2]
[363751328,1748860250755,-420.0,0.00019863,2]
[363751329,1748860250764,-726.39,0.00019863,2]
[363751330,1748860250775,-420.0,0.00019863,2]
[363751331,1748860250785,-420.0,0.00019863,2]
[363751332,1748860250797,-2424.67,0.00019863,2]
[363751333,1748860250806,-1039.57,0.00019863,2]
[363751334,1748860250816,-420.0,0.00019863,2]
[363751335,1748860250826,-935.55,0.00019863,2]
[363751336,1748860250836,-420.0,0.00019863,2]
[363751337,1748860250845,-420.0,0.00019863,2]
[363751338,1748860250855,-420.0,0.00019863,2]
[363751339,1748860250865,-420.0,0.00019863,2]
[363751340,1748860250875,-420.0,0.00019863,2]
[363751341,1748860250885,-420.0,0.00019863,2]
[363751342,1748860250895,-420.0,0.00019863,2]
[363751343,1748860250905,-532.95,0.00019863,2]
[363751344,1748860250916,-420.0,0.00019863,2]
[363751345,1748860250926,-420.0,0.00019863,2]
[363751346,1748860250936,-4075.0,0.00019874,2]
[363751347,1748860250946,-7010.0,0.00019874,2]
[363751348,1748860250956,-1696.86097975,0.0001988,2]
[363751349,1748860250966,-434.545005,0.000199,7]
[363751350,1748860250976,-6003.01193379,0.000199,2]
[363751351,1748860250986,-155.44415502,0.000199,2]
[363751352,1748860250996,-1000.0,0.000199,2]
[363751353,1748860251006,-207.4,0.00019966,2]
[363751354,1748860251015,-565.92790107,0.0001997,2]
[363751355,1748860251030,-45662.14107992,0.00019971,2]
[363751356,1748860251040,-500.0,0.00019973,2]
[363751357,1748860251050,-500.0,0.00019973,2]
[363751358,1748860251060,-500.0,0.00019973,2]
[363751359,1748860251071,-500.0,0.00019973,2]
[363751360,1748860251080,-151.0,0.00019988,2]
[363751361,1748860251089,-500.0,0.00019988,2]
[363751362,1748860251100,-500.0,0.00019988,2]
[363751363,1748860251110,-500.0,0.00019988,2]
[363751364,1748860251119,-500.0,0.00019988,2]
[363751365,1748860251128,-500.0,0.00019988,2]
[363751366,1748860251138,-500.0,0.00019988,2]
[363751367,1748860251148,-500.0,0.00019988,2]
[363751368,1748860251158,-471.88,0.00019988,2]
[363751369,1748860251168,-10005.81333042,0.00019995,2]
[363751370,1748860251177,-300.0,0.00019999,2]
[363751371,1748860251187,-300.0,0.00019999,2]
[363751372,1748860251197,-2560.37082522,0.00019999,2]
[363751373,1748860251207,-15141.90301677,0.00019999,2]
[363751374,1748860251218,-866.0,0.0002,2]
[363751375,1748860251227,-131202.85867896,0.0002,2]
[363751376,1748860251237,-553812.90388166,0.0002,2]
[363751377,1748860251516,-420.0,0.00019452,2]
[363751378,1748860251529,-25.448,0.0002,2]
[363751379,1748860251541,-296.22130261,0.0002,2]
[363751380,1748860252168,-501.12247965,0.00019178,2]
[363751381,1748860252180,-382.32662035,0.00019178,2]
[363751382,1748860267391,-37.67337965,0.00019178,2]
[363751383,1748860267401,-420.0,0.00019178,2]
[363751384,1748860267411,-420.0,0.00019178,2]
[363751385,1748860267421,-514.47,0.00019178,2]
[363751386,1748860267431,-543.57,0.00019178,2]
[363751387,1748860267442,-420.0,0.00019178,2]
[363751388,1748860267452,-420.0,0.00019178,2]
[363751389,1748860267463,-356.28662035,0.00019178,2]
[363751390,1748860267489,-63.71337965,0.00019178,2]
[363751391,1748860267499,-374.87652035,0.00019178,2]
[363751392,1748860333755,600.0,0.00019001,2]
[363751393,1748860347123,638.11,0.0001698,2]
[363751396,1748860579025,250.0,0.0002288,30]
[363751397,1748860589540,250.0,0.00018604,2]
[363751398,1748860762128,1000.0,0.00018324,2]
[363751399,1748860762717,256.86,0.00018324,2]
[363751400,1748860801699,200.0,0.000189,6]
[363751401,1748860854037,332.02,0.00018336,2]
[363751402,1748860912799,7355.46,0.0001831,2]
[363751403,1748860950462,155.34,0.00018319,2]
[363751404,1748861054956,181.024799,0.00018981,2]
[363751405,1748861109839,170.58820627,0.00018,2]
[363751406,1748861109870,150.0,0.00018,2]
[363751407,1748861109936,159.30507241,0.00018,2]
[363751408,1748861116421,155.39224402,0.00018,2]
[363751409,1748861116833,153.49235685,0.00018,2]
[363751410,1748861156935,167.68482798,0.00018977,2]
[363751412,1748861191565,1048.381691,0.00018981,2]
[363751414,1748861219518,719.68,0.00018313,2]
[363751415,1748861220985,256.79,0.00013699,2]
[363751419,1748861227787,700.0,0.000189,6]
[363751428,1748861330159,169.12,0.00018853,2]
[363751429,1748861333304,198.23,0.00018981,2]
[363751435,1748861400331,1268.91517712,0.00023,30]
[363751442,1748861431801,-1200.0,0.00019077,2]
[363751443,1748861431811,-174.56131133,0.00019078,2]
[363751444,1748861431844,-75.43868867,0.00019078,2]
[363751445,1748861431855,-959.56131133,0.00019078,2]
[363751446,1748861431867,-2123.72588867,0.00019078,2]
[363751447,1748861431878,-2602.94808485,0.00019078,2]
[363751448,1748861431890,-1080.56501414,0.00019078,2]
[363751449,1748861431906,-1225.64995436,0.00019078,2]
[363751450,1748861431917,-1953.09679889,0.00019078,2]
[363751451,1748861431928,-2892.85158688,0.00019078,2]
[363751453,1748861431948,-823.27557035,0.00019078,2]
[363751455,1748861431959,-882.66326011,0.00019078,2]
[363751457,1748861431969,-561.09149513,0.00019078,2]
[363751459,1748861431978,-97.83417848,0.00019078,2]
[363751461,1748861431994,-195.72570453,0.00019078,2]
[363751462,1748861432003,-2041.85601627,0.00019078,2]
[363751463,1748861432020,-269.4,0.00019078,2]
[363751464,1748861432036,-4958.72197968,0.00019078,2]
[363751465,1748861432046,-202.41775831,0.00019078,2]
[363751466,1748861432057,-574.3215,0.00019078,2]
[363751467,1748861432067,-5000.0,0.00019078,2]
[363751468,1748861432077,-500.0,0.00019128,2]
[363751469,1748861432087,-151.0,0.00019166,2]
[363751471,1748861432096,-920.02821186,0.00019166,2]
[363751473,1748861432105,-750.0,0.00019166,2]
[363751475,1748861432115,-750.0,0.00019166,2]
[363751477,1748861432124,-750.0,0.00019166,2]
[363751479,1748861432133,-750.0,0.00019166,2]
[363751481,1748861432142,-750.0,0.00019166,2]
[363751484,1748861432151,-750.0,0.00019166,2]
[363751486,1748861432160,-750.0,0.00019166,2]
[363751488,1748861432169,-750.0,0.00019166,2]
[363751489,1748861432179,-750.0,0.00019166,2]
[363751491,1748861432189,-750.0,0.00019166,2]
[363751492,1748861432410,-750.0,0.00019166,2]
[363751493,1748861432421,-750.0,0.00019166,2]
[363751494,1748861432435,-750.0,0.00019166,2]
[363751495,1748861432445,-536.13492755,0.00019166,2]
[363751496,1748861432455,-207.4,0.00019166,2]
[363751497,1748861432465,-431.33,0.00019168,3]
[363751498,1748861432475,-451.17,0.00019168,2]
[363751499,1748861432484,-7291.54049147,0.00019169,2]
[363751504,1748861437531,-7252.79697803,0.00019169,2]
[363751505,1748861437541,-7269.97799587,0.00019169,2]
[363751506,1748861437551,-222.0,0.00019172,2]
[363751507,1748861437560,-500.0,0.00019173,2]
[363751508,1748861437570,-500.0,0.00019173,2]
[363751509,1748861437579,-500.0,0.00019173,2]
[363751510,1748861437588,-500.0,0.00019173,2]
[363751511,1748861437598,-500.0,0.00019173,2]
[363751512,1748861437606,-500.0,0.00019173,2]
[363751513,1748861437615,-433.44377422,0.00019178,2]
[363751514,1748861437624,-420.0,0.00019178,2]
[363751515,1748861437633,-422.23714508,0.00019178,2]
[363751516,1748861437644,-406.66477104,0.00019178,2]
[363751517,1748861437654,-267.77157134,0.00019178,2]
[363751518,1748861437663,-420.0,0.00019178,2]
[363751519,1748861437673,-420.0,0.00019178,2]
[363751520,1748861437682,-420.0,0.00019178,2]
[363751521,1748861437691,-424.95325767,0.00019178,2]
[363751522,1748861437701,-420.0,0.00019178,2]
[363751523,1748861437710,-420.0,0.00019178,2]
[363751524,1748861437719,-420.0,0.00019178,2]
[363751525,1748861437729,-420.0,0.00019178,2]
[363751526,1748861437738,-420.0,0.00019178,2]
[363751527,1748861437748,-420.0,0.00019178,2]
[363751528,1748861437758,-420.0,0.00019178,2]
[363751529,1748861437768,-420.0,0.00019178,2]
[363751530,1748861437778,-420.0,0.00019178,2]
[363751531,1748861437789,-420.0,0.00019178,2]
[363751532,1748861437799,-420.0,0.00019178,2]
[363751533,1748861437808,-420.0,0.00019178,2]
[363751534,1748861437818,-420.0,0.00019178,2]
[363751535,1748861437827,-420.0,0.00019178,2]
[363751536,1748861437836,-420.0,0.00019178,2]
[363751537,1748861437846,-420.0,0.00019178,2]
[363751538,1748861437856,-420.0,0.00019178,2]
[363751540,1748861437865,-420.0,0.00019178,2]
[363751542,1748861437875,-420.0,0.00019178,2]
[363751543,1748861437884,-420.0,0.00019178,2]
[363751544,1748861437893,-420.0,0.00019178,2]
[363751545,1748861437903,-420.0,0.00019178,2]
[363751546,1748861437912,-420.0,0.00019178,2]
[363751547,1748861437922,-420.0,0.00019178,2]
[363751548,1748861437931,-422.49526324,0.00019178,2]
[363751549,1748861437940,-420.0,0.00019178,2]
[363751550,1748861437950,-420.0,0.00019178,2]
[363751551,1748861437960,-420.0,0.00019178,2]
[363751552,1748861437969,-420.0,0.00019178,2]
[363751554,1748861437979,-420.0,0.00019178,2]
[363751556,1748861437988,-420.0,0.00019178,2]
[363751558,1748861437997,-420.0,0.00019178,2]
[363751560,1748861438007,-420.0,0.00019178,2]
[363751562,1748861438016,-420.0,0.00019178,2]
[363751564,1748861438025,-420.0,0.00019178,2]
[363751566,1748861438034,-420.0,0.00019178,2]
[363751568,1748861438044,-420.0,0.00019178,2]
[363751570,1748861438053,-420.0,0.00019178,2]
[363751572,1748861438063,-420.0,0.00019178,2]
[363751574,1748861438072,-420.0,0.00019178,2]
[363751576,1748861438081,-420.0,0.00019178,2]
[363751578,1748861438090,-420.0,0.00019178,2]
[363751580,1748861438100,-420.0,0.00019178,2]
[363751583,1748861438110,-420.0,0.00019178,2]
[363751585,1748861438124,-420.0,0.00019178,2]
[363751587,1748861438134,-420.0,0.00019178,2]
[363751589,1748861438144,-420.0,0.00019178,2]
[363751591,1748861438154,-420.0,0.00019178,2]
[363751593,1748861438163,-425.56047045,0.00019178,2]
[363751595,1748861438173,-425.65468163,0.00019178,2]
[363751597,1748861438183,-420.0,0.00019178,2]
[363751599,1748861438192,-420.0,0.00019178,2]
[363751601,1748861438202,-420.0,0.00019178,2]
[363751603,1748861438211,-420.0,0.00019178,2]
[363751605,1748861438220,-420.0,0.00019178,2]
[363751607,1748861438230,-420.0,0.00019178,2]
[363751609,1748861438239,-420.0,0.00019178,2]
[363751611,1748861438249,-420.0,0.00019178,2]
[363751613,1748861438258,-420.0,0.00019178,2]
[363751615,1748861438268,-508.61772006,0.00019178,2]
[363751617,1748861438277,-420.0,0.00019178,2]
[363751619,1748861438286,-420.0,0.00019178,2]
[363751621,1748861438295,-420.0,0.00019178,2]
[363751623,1748861438304,-165.49446782,0.00019178,2]
[363751625,1748861438314,-420.0,0.00019178,2]
[363751627,1748861438324,-420.0,0.00019178,2]
[363751629,1748861438333,-420.0,0.00019178,2]
[363751631,1748861438343,-420.0,0.00019178,2]
[363751633,1748861438352,-420.0,0.00019178,2]
[363751635,1748861438362,-420.0,0.00019178,2]
[363751637,1748861438371,-420.0,0.00019178,2]
[363751639,1748861438381,-420.0,0.00019178,2]
[363751642,1748861438402,-420.0,0.00019178,2]
[363751644,1748861438412,-420.0,0.00019178,2]
[363751645,1748861438422,-420.0,0.00019178,2]
[363751648,1748861438435,-420.0,0.00019178,2]
[363751650,1748861438445,-420.0,0.00019178,2]
[363751652,1748861438455,-420.0,0.00019178,2]
[363751654,1748861438466,-420.0,0.00019178,2]
[363751656,1748861438475,-420.0,0.00019178,2]
[363751658,1748861438485,-420.0,0.00019178,2]
[363751660,1748861438495,-420.0,0.00019178,2]
[363751662,1748861438505,-420.0,0.00019178,2]
[363751664,1748861438516,-420.0,0.00019178,2]
[363751666,1748861438526,-420.0,0.00019178,2]
[363751668,1748861438536,-420.0,0.00019178,2]
[363751670,1748861438546,-420.0,0.00019178,2]
[363751672,1748861438556,-420.0,0.00019178,2]
[363751674,1748861438565,-420.0,0.00019178,2]
[363751676,1748861438575,-420.0,0.00019178,2]
[363751678,1748861438584,-420.0,0.00019178,2]
[363751680,1748861438593,-420.0,0.00019178,2]
[363751682,1748861438603,-420.0,0.00019178,2]
[363751684,1748861438613,-420.0,0.00019178,2]
[363751686,1748861438623,-420.0,0.00019178,2]
[363751688,1748861438633,-420.0,0.00019178,2]
[363751690,1748861438642,-420.0,0.00019178,2]
[363751692,1748861438651,-420.0,0.00019178,2]
[363751694,1748861438661,-420.0,0.00019178,2]
[363751696,1748861438673,-420.0,0.00019178,2]
[363751698,1748861438683,-420.0,0.00019178,2]
[363751700,1748861438693,-420.0,0.00019178,2]
[363751702,1748861438702,-420.0,0.00019178,2]
[363751704,1748861438712,-420.0,0.00019178,2]
[363751706,1748861438722,-420.0,0.00019178,2]
[363751708,1748861438732,-420.0,0.00019178,2]
[363751710,1748861438742,-420.0,0.00019178,2]
[363751712,1748861438753,-420.0,0.00019178,2]
[363751714,1748861438763,-420.0,0.00019178,2]
[363751716,1748861438774,-420.0,0.00019178,2]
[363751719,1748861438784,-420.0,0.00019178,2]
[363751721,1748861438794,-420.0,0.00019178,2]
[363751723,1748861438805,-420.0,0.00019178,2]
[363751725,1748861438814,-420.0,0.00019178,2]
[363751727,1748861438823,-420.0,0.00019178,2]
[363751728,1748861438833,-420.0,0.00019178,2]
[363751731,1748861438842,-420.0,0.00019178,2]
[363751733,1748861438852,-420.0,0.00019178,2]
[363751735,1748861438862,-420.0,0.00019178,2]
[363751737,1748861438871,-420.0,0.00019178,2]
[363751739,1748861438881,-420.0,0.00019178,2]
[363751741,1748861438891,-420.0,0.00019178,2]
[363751743,1748861438901,-420.0,0.00019178,2]
[363751745,1748861438911,-485.531935,0.00019178,2]
[363751747,1748861438920,-416.89624448,0.00019178,2]
[363751749,1748861438929,-420.0,0.00019178,2]
[363751751,1748861438938,-420.0,0.00019178,2]
[363751753,1748861438948,-420.0,0.00019178,2]
[363751754,1748861438958,-420.0,0.00019178,2]
[363751757,1748861438968,-420.0,0.00019178,2]
[363751758,1748861438978,-420.0,0.00019178,2]
[363751761,1748861438988,-420.0,0.00019178,2]
[363751762,1748861438998,-420.0,0.00019178,2]
[363751765,1748861439008,-420.0,0.00019178,2]
[363751766,1748861439018,-342.636166,0.00019178,2]
[363751768,1748861439028,-420.0,0.00019178,2]
[363751770,1748861439038,-420.0,0.00019178,2]
[363751772,1748861439047,-420.0,0.00019178,2]
[363751774,1748861439058,-420.0,0.00019178,2]
[363751776,1748861439067,-420.0,0.00019178,2]
[363751778,1748861439077,-420.0,0.00019178,2]